Cogmind - Beta 16 @@@ ROGUE MODE // 2025.11.07 @ 21:29:02 Player: souux Result: Self-destructed Performance ------------- Evolutions (1) 500 Regions Visited (2) 400 Robots Destroyed (35) 175 Value Destroyed (643) 643 Prototype IDs (0) 0 Alien Tech Used (0) 0 Bonus (0) 0 TOTAL SCORE: 1718 Bonus ------- None Cogmind --------- Core Integrity 400/400 Matter 184/300 Energy 250/250 System Corruption 0% Temperature Cool (0) Movement Treading (240) Ox1 Location -9/Materials Parts ------- > --- POWER (3) -------- Ion Engine > --- PROPULSION (2) --- Light Treads Light Treads > --- UTILITY (2) ------ Improved Heat Sink High-capacity Storage Unit > --- WEAPON (2) ------- Autogun Autogun > --- INVENTORY (20) --- Ion Engine Light Treads Light Treads Light Treads Light Treads Light Treads Light Treads Light Treads Light Treads Light Treads Large Storage Unit Structural Scanner Seismic Detector ECM Suite Hacking Suite Hacking Suite Particle Gun Autogun Autogun Grenade Launcher Peak State ------------ > --- POWER ------------ Ion Engine > --- PROPULSION ------- Wheel Compact Wheel > --- UTILITY ---------- Improved Heat Sink High-capacity Storage Unit > --- WEAPON ----------- Autogun Autogun > --- INVENTORY -------- Ion Engine Light Treads Light Treads Light Treads Aluminum Leg Large Storage Unit Structural Scanner Seismic Detector ECM Suite Hacking Suite EM Pulse Gun EM Pulse Gun EM Pulse Gun Small Laser Light Assault Rifle Autogun Autogun Grenade Launcher [Rating: 13] Favorites ----------- Power Ion Engine Engine Ion Engine Propulsion Light Treads Treads Light Treads Leg Aluminum Leg Wheel Wheel Utility High-capacity Storage Unit Device Improved Heat Sink Storage High-capacity Storage Unit Weapon Autogun Energy Gun EM Pulse Gun Ballistic Gun Autogun Launcher Grenade Launcher Build | -11 -10 -9 ------- Run | Yrd Mat Mat Slots Evolved 2 | . . 2 Power 2 | . . 2 Propulsion . | . . . Utility . | . . . Weapon . | . . . Parts Attached 25 | 7 18 . Power 3 | 1 2 . Engine 3 | 1 2 . Core . | . . . Reactor . | . . . Propulsion 9 | 2 7 . Treads 4 | . 4 . Leg 3 | 2 1 . Wheel 2 | . 2 . Hover . | . . . Flight . | . . . Utility 4 | 2 2 . Device 2 | 1 1 . Storage 2 | 1 1 . Processor . | . . . Hackware . | . . . Protection . | . . . Artifact . | . . . Weapon 9 | 2 7 . Energy Gun 1 | 1 . . Energy Cannon . | . . . Ballistic Gun 7 | 1 6 . Ballistic Cannon . | . . . Launcher 1 | . 1 . Special Weapon . | . . . Impact Weapon . | . . . Slashing Weapon . | . . . Piercing Weapon . | . . . Special Melee Weapon . | . . . Unidentified Prototypes . | . . . Parts Lost 3 | . 3 . Power 1 | . 1 . Propulsion . | . . . Utility 1 | . 1 . Weapon 1 | . 1 . Highest Loss Streak 1 | . 1 . To Critical Strikes . | . . . Average Backups 16 | 5 17 . Power . | . . . Propulsion 7 | 3 7 . Utility 4 | . 4 . Weapon 4 | . 4 . Tool/Special . | . . . Unused Backups 21 | . 5 16 Power 2 | . 1 1 Propulsion 8 | . . 8 Utility 6 | . . 6 Weapon 5 | . 4 1 Tool/Special . | . . . Average Slot Usage (%) 99 | . 99 . Engine 14 | . 14 . Treads 22 | . 22 . Leg 2 | . 2 . Wheel 2 | . 2 . Device 13 | . 13 . Storage 14 | . 14 . Ballistic Gun 27 | . 27 . Peak Build Rating 13 | 7 13 . Average Rating 11 | 5 11 . On Entrance 6 | . 7 13 Avg Prop Armor Cover (%) . | . . . Naked Turns . | . . . Heaviest Build 52 | 12 52 . Greatest Support 40 | 20 40 . Greatest Overweight (x) 17 | 1 17 . Average Overweight (x) . | . . . Largest Inventory Capacity 20 | 8 20 . Average Capacity 18 | 7 19 . Most Carried 20 | 7 20 . Average Carried 16 | 5 17 . Final Capacity 20 | 8 20 20 Final Carried 20 | 7 20 20 Class Distribution -------------------- 100% | Mutant Dominant Class ---------------- Mutant | -10/Materials Mutant | -9/Materials Resources | -11 -10 -9 ----------- Run | Yrd Mat Mat Matter Collected 911 | 282 629 . Remotely . | . . . Salvage Created 998 | 120 878 . Parts 78 | 10 68 . Haulers Intercepted 2 | . 2 . Recyclers Shooed . | . . . Parts Field Recycled . | . . . Retrieved Matter . | . . . Parts Self-Destructed . | . . . Prevented . | . . . Parts Restored . | . . . Kills | -11 -10 -9 ------- Run | Yrd Mat Mat Combat Hostiles Destroyed 18 | . 18 . Guns 12 | . 12 . AOE 6 | . 6 . Classes Destroyed 10 | 2 8 . Worker 2 | . 2 . Builder 4 | . 4 . Tunneler 2 | 2 . . Hauler 2 | . 2 . Recycler 2 | 1 1 . Mechanic 1 | . 1 . Operator 3 | . 3 . Watcher 1 | . 1 . Swarmer 6 | . 6 . Grunt 12 | . 12 . Best Kill Streak 7 | 2 7 . Combat Bots Only 3 | . 3 . Max Kills in Single Turn 3 | 1 3 . Gunslinging . | . . . Exploded 2 | . 2 . Melee . | . . . Uniques/NPCs Destroyed . | . . . Combat | -11 -10 -9 -------- Run | Yrd Mat Mat Hostile Shots Fired 81 | . 81 . Missed 22 | . 22 . Hits 59 | . 59 . Projectile 59 | . 59 . Damage Taken 740 | . 740 . Core 127 | . 127 . Absorbed by Shields . | . . . Core Remaining (%) 74 | 100 49 . Volleys Fired 100 | 12 88 . Largest 2 | 2 2 . Hottest 60 | 60 46 . Shots Fired 176 | 14 162 . Gun 170 | 14 156 . Cannon . | . . . Launcher 6 | . 6 . Special . | . . . Kinetic 168 | 12 156 . Thermal . | . . . Explosive 6 | . 6 . Electromagnetic 2 | 2 . . Robot Hit Streak 19 | 3 19 . Robot Miss Streak 9 | 2 9 . Penetration Max . | . . . Secondary Targets 1 | . 1 . Max Gunslinging Chain 1 | . 1 . Shots Hit Robots 115 | 8 107 . Core Hits 54 | 5 49 . Critical Kills . | . . . Critical Parts Destroyed . | . . . Critical Strikes . | . . . Melee Attacks . | . . . Impact . | . . . Slashing . | . . . Piercing . | . . . Sneak Attacks . | . . . Combat Hostiles . | . . . Follow-up Attacks . | . . . Damage Inflicted 1872 | 82 1790 . Guns 1438 | 82 1356 . Cannons . | . . . Explosions 413 | . 413 . Melee . | . . . Ramming 21 | . 21 . Kinetic 1410 | 54 1356 . Thermal . | . . . Explosive 413 | . 413 . Electromagnetic 28 | 28 . . Impact . | . . . Slashing . | . . . Piercing . | . . . Highest Corruption . | . . . Average Corruption . | . . . Corruption Purged . | . . . Corruption Blocked . | . . . Overload Shots . | . . . Overflow Damage 2 | . 2 . Projectiles . | . . . Explosions 2 | . 2 . Melee . | . . . Knockbacks . | . . . Impact . | . . . Kinetic . | . . . Secondary . | . . . Self-Inflicted Damage . | . . . Shots . | . . . Rammed 3 | . 3 . Targets Rammed 4 | . 4 . Kicked . | . . . Crushed 1 | . 1 . Highest Temperature 40 | 40 9 . Average Temperature 8 | 20 4 . Received Heat Transfer 366 | . 366 . Siege Activations . | . . . Martial Activations . | . . . Shielding Activations . | . . . Robots Disrupted . | . . . Combat Hostiles . | . . . Robots Corrupted . | . . . Combat Hostiles . | . . . Parts Fried . | . . . Impact Corruptions . | . . . Robots Melted . | . . . Combat Hostiles . | . . . Parts Melted . | . . . Heat Transferred . | . . . Parts Sabotaged . | . . . Parts Stolen . | . . . Parts Stripped . | . . . Power Chain Reactions . | . . . Alert | -11 -10 -9 ------- Run | Yrd Mat Mat Maximum Alert Level . | . . . Low Security (%) 100 | 100 100 . Level 1 . | . . . Level 2 . | . . . Level 3 . | . . . Level 4 . | . . . Level 5 . | . . . High Security . | . . . Max Security . | . . . Peak Influence 143 | 5 143 . Initial 58 | . . 58 Average 48 | . 50 . Influence Increases 661 | 15 646 . Destroy 0b10 Robot/C 360 | . 360 . Destroy 0b10 Robot/NC 85 | 15 70 . Destroy Leader 76 | . 76 . Successful Hack 19 | . 19 . Disable Machine 30 | . 30 . Destroy Structure 31 | . 31 . Lose Combat Pursuer 60 | . 60 . Influence Decreases 603 | 15 507 81 Entered New Map 81 | . . 81 Time Decay 502 | 15 487 . Lost Part 20 | . 20 . Squads Dispatched 3 | . 3 . Investigation . | . . . Extermination . | . . . Reinforcement 3 | . 3 . Assault . | . . . Garrison . | . . . Intercept . | . . . Searches Triggered . | . . . Construction Impeded . | . . . Haulers Reinforced . | . . . Active Scanning Responses . | . . . Cargo Convoy Interrupts . | . . . Stealth | -11 -10 -9 --------- Run | Yrd Mat Mat Distress Signals 2 | . 2 . Communications Jammed . | . . . Distress Signals . | . . . Times Spotted 33 | . 33 . Peak Tracking Total 4 | . 4 . Tactical Retreats 3 | . 3 . Traps | -11 -10 -9 ------- Run | Yrd Mat Mat Traps Triggered . | . . . Indirectly . | . . . Trap Hack Attempts . | . . . Triggered . | . . . Disarmed . | . . . Reprogrammed . | . . . Reused . | . . . Traps Extracted . | . . . Installed . | . . . Triggered . | . . . Machines | -11 -10 -9 ---------- Run | Yrd Mat Mat Machines Disabled 3 | . 3 . Max in Single Turn 1 | . 1 . Machines Repaired . | . . . Machines Dismantled . | . . . Machines Sabotaged . | . . . Overloaded Fab Kills . | . . . Hacking | -11 -10 -9 --------- Run | Yrd Mat Mat Machines Accessed 4 | . 4 . Terminals 4 | . 4 . Fabricators . | . . . Repair Stations . | . . . Recycling Units . | . . . Scanalyzers . | . . . Garrison Access . | . . . Total Hacks 18 | . 18 . Successful 10 | . 10 . Failed 8 | . 8 . Catastrophic . | . . . Database Lockouts . | . . . Manual 14 | . 14 . Terminals 18 | . 18 . Fabricators . | . . . Repair Stations . | . . . Recycling Units . | . . . Scanalyzers . | . . . Garrison Access . | . . . Terminal Hacks 3 | . 3 . Robot Analysis 3 | . 3 . Fabricator Hacks . | . . . Repair Station Hacks . | . . . Recycling Unit Hacks . | . . . Scanalyzer . | . . . Garrison Access Hacks . | . . . Unauthorized Hacks 7 | . 7 . Terminals 7 | . 7 . Botnet 3 | . 3 . Skim 4 | . 4 . Fabricators . | . . . Repair Stations . | . . . Recycling Units . | . . . Scanalyzers . | . . . Garrison Access . | . . . Data Cores Recovered . | . . . Used . | . . . Hacking Detections 4 | . 4 . Full Trace Events . | . . . Feedback Events . | . . . Feedback Blocked . | . . . Robot Schematics Acquired . | . . . Robots Built . | . . . Authchips . | . . . Time . | . . . Total Robot Build Rating . | . . . Part Schematics Acquired . | . . . Parts Built . | . . . Authchips . | . . . Time . | . . . Total Part Build Rating . | . . . Part Studies Acquired . | . . . Parts Repaired . | . . . Time . | . . . Parts Recycled . | . . . Recycled Matter . | . . . Retrieved Matter . | . . . Retrieved Components . | . . . Parts Scanalyzed . | . . . Part Schematics Acquired . | . . . Parts Damaged . | . . . Bothacking | -11 -10 -9 ------------ Run | Yrd Mat Mat Used RIF Installer . | . . . Robots Hacked . | . . . Non-combat . | . . . Combat . | . . . Robot Hacks Applied . | . . . Relay Couplers Released . | . . . Fabnet Peak Effective % . | . . . Robots Rewired . | . . . Allies Hacked . | . . . Hacks Repelled . | . . . Allies | -11 -10 -9 -------- Run | Yrd Mat Mat Total Allies . | . . . Largest Group . | . . . Highest-Rated Group . | . . . Highest-Rated Ally . | . . . Total Orders . | . . . Ally Attacks . | . . . Total Damage . | . . . Kills . | . . . Allies Corrupted . | . . . Allies Melted . | . . . Intel | -11 -10 -9 ------- Run | Yrd Mat Mat Active Infowar (turns) 384 | 40 344 . Seismic 384 | 40 344 . Robot Analysis Total 3 | . 3 . Derelict Logs Recovered . | . . . Drone Launches . | . . . Drone Recoveries . | . . . Exploration | -11 -10 -9 ------------- Run | Yrd Mat Mat Turns Passed 2499 | 122 2377 . Spaces Moved 1028 | 68 960 . Core 11 | 9 2 . Treads 711 | . 711 . Legs 120 | 59 61 . Wheels 186 | . 186 . Hover . | . . . Flight . | . . . Fastest Speed 50 | 50 105 . Average Speed 201 | 116 207 . Slowest Speed 900 | 190 900 . Overloaded Moves . | . . . Propulsion Burnouts . | . . . Robots Hopped . | . . . Potential Cave-ins . | . . . Cave-ins Triggered . | . . . Exploration Rate (%) 35 | 5 99 1 Regions Visited 2 Branch Regions . Pre-discovered Areas . | . . . Known Exits Taken . | . . . Unknown Exits Taken 2 | 1 1 . Scrap Searched . | . . . Spaces Dug . | . . . Terrain Destroyed 31 | . 31 . Melee . | . . . Projectile . | . . . AOE 31 | . 31 . Terrain Rammed . | . . . Walls Destroyed . | . . . Machines Disabled . | . . . Actions | -11 -10 -9 --------- Run | Yrd Mat Mat Total 1299 | 95 1204 . Wait 85 | 2 83 . Move 1026 | 67 959 . Hop . | . . . Pick Up 33 | 7 26 . Fast Attach 9 | 7 2 . Attach 3 | . 3 . Detach . | . . . Swap 21 | . 21 . Drop 18 | . 18 . Fire 100 | 12 88 . Melee . | . . . Ram . | . . . Kick . | . . . Crush 4 | . 4 . Escape Stasis . | . . . Rewire . | . . . Trap . | . . . Miscellaneous . | . . . Route ------- -11/Scrapyard -10/Materials (discovered 4 exits: [*Mat x3] / [*Min]) -9/Materials History --------- Turn | Location | Event 6 | -11/Scrapyard | Discovered new exit (range 15) 123 | -11/Scrapyard | Entered Materials 315 | -10/Materials | Build established: Mutant 415 | -10/Materials | Discovered new exit (range 8) 802 | -10/Materials | Discovered new exit (range 16) 1136 | -10/Materials | Discovered new exit (range 13) 1561 | -10/Materials | Core integrity fell below 50% 1689 | -10/Materials | Discovered new exit (range 5) 2500 | -10/Materials | Entered another Materials area 2500 | -9/Materials | Evolved 2 slots: Power x2 2500 | -9/Materials | Self-destructed Last Messages --------------- 01825_ R-06 Scavenger collects Lrg. Matter Pod. 01827_ Acquired Lgt. Treads. 01829_ R-06 Scavenger collects Lrg. Matter Pod. 01833_ Dropped Ion Engine. 01901_ Slammed into R-06 Scavenger. 01984_ Connecting with Terminal... 02208_ K-01 Serf cleans the Integration Channel. 02272_ Connecting with Terminal... 02423_ Slammed into U-05 Engineer. 02456_ Terminal disabled. 02456_ S-10 Pest destroyed. 02456_ U-05 Engineer destroyed. 02456_ S-10 Pest destroyed. 02478_ R-06 Scavenger collects Lgt. Ion Engine. 02482_ R-06 Scavenger collects Structural Scanner. 02491_ R-06 Scavenger collects Flight Unit. PARAMETERS=POWER+2 LOCATION=UNKNOWN GOAL=ESCAPE Map ----- +----------------------------------------------------+ | ???????????????????????????????? | | ???????????????????????????????? | | ???????????????????????????????? | | ???????????????????????????????? | | ???????????????????????????????? | | ???????????????????????????????? | | ???????????????????????????????? | | ???????????????????????????????? | | ???????????????????????????????? | | ???????????????????????????????? | | ???????????????????????????????? | | ???????????????????????????????? | | ???????????????????????????????? | | ???????????????????????????????? | | ????#######????????????????????? | | ????# #????????????????????? | | ????# ????????????????????? | | ????? ?????????????????????? | | ????? ?????????????????????? | | ????? ?????????????????????? | | ?????# #?????????????????????? | | ?????# #?????????????????????? | | ?????# #?????????????????????? | | ?????# #?????????????????????? | | ?????# #?????????????????????? | | ?????# @ #?????????????????????? | | ?????# #?????????????????????? | | ?????#####?????????????????????? | | ???????????????????????????????? | | ???????????????????????????????? | | ???????????????????????????????? | | ???????????????????????????????? | | ???????????????????????????????? | | ???????????????????????????????? | | ???????????????????????????????? | | ???????????????????????????????? | | ???????????????????????????????? | | ???????????????????????????????? | | ???????????????????????????????? | | ???????????????????????????????? | | ???????????????????????????????? | | ???????????????????????????????? | | ???????????????????????????????? | | ???????????????????????????????? | | | | | | | | | | | | | +----------------------------------------------------+ Best States ------------- Heat Dissipation 39 Energy Generation 10 Energy Capacity 250 Matter Stores 300 Matter Capacity 300 Sight Range 16 Terrain Scan Density 10 Evasion (%) 55 Recoil Reduction 2 Item Schematics ----------------- None Robot Schematics ------------------ None Fabricated ------------ Nothing Repaired ---------- Nothing Studied --------- None Alien Tech Used ----------------- None Achievements -------------- None Challenges ------------ None Game ------ Seed AerolevFireInitializer Manual? 0 Play Time 00:15:11 Cumulative 81.1 hours Start 2025.11.07 @ 21:10:49 End 2025.11.07 @ 21:29:02 Sessions 1 Manual Loads 0 Difficulty Rogue Special Mode None Game No. 74 Rogue 74 Adventurer 0 Explorer 0 Win Type - Total 0 Types 0/0/0/0/0/0/0/0/0/0 Lore% 30 Gallery% 40 Achievement% 29 Wizard Run 0 Options --------- Layout 2 ASCII 0 Keyboard 0 Movement Mouse Keybinds 0 Fullscreen 1 Font 24/Smallcaps Map View 50x44 Zoom Use 0% Tactical HUD 1 Map Filters NONE Filters NONE Steam 1 RUN: 325d5ecf-8d4e-432b-9b63-6df646625161